[Event "*** SCC Grand Prix: Titled Tuesday Blitz"]
[Site "Chess.com"]
[Date "2020.08.11"]
[Round "2"]
[White "TST2014"]
[Black "1stSecond"]
[Result "0-1"]
[WhiteElo "2513"]
[BlackElo "2785"]
[TimeControl "180+1"]
[EndTime "10:18:01 PDT"]
[Termination "1stSecond won on time"]

1. d4 {[%clk 0:03:00.9]} 1... d5 {[%clk 0:02:58.4]} 2. c4 {[%clk 0:03:00.6]}
2... e6 {[%clk 0:02:57.8]} 3. Nf3 {[%clk 0:03:00.4]} 3... a6 {[%clk 0:02:57.1]}
4. e3 {[%clk 0:02:58]} 4... Nf6 {[%clk 0:02:56.3]} 5. Nc3 {[%clk 0:02:57]} 5...
Be7 {[%clk 0:02:51.8]} 6. Be2 {[%clk 0:02:47.6]} 6... dxc4 {[%clk 0:02:51.7]} 7.
a4 {[%clk 0:02:47.5]} 7... c5 {[%clk 0:02:48.7]} 8. O-O {[%clk 0:02:46.9]} 8...
Nc6 {[%clk 0:02:48]} 9. Bxc4 {[%clk 0:02:46.8]} 9... O-O {[%clk 0:02:40.7]} 10.
Qe2 {[%clk 0:02:45.8]} 10... cxd4 {[%clk 0:02:38]} 11. Rd1 {[%clk 0:02:45]}
11... e5 {[%clk 0:02:33.5]} 12. exd4 {[%clk 0:02:44.2]} 12... exd4 {[%clk
0:02:33]} 13. Be3 {[%clk 0:02:10.7]} 13... Bg4 {[%clk 0:02:26.7]} 14. h3 {[%clk
0:01:55]} 14... Bxf3 {[%clk 0:02:19.6]} 15. Qxf3 {[%clk 0:01:54.7]} 15... Qb6
{[%clk 0:02:18.8]} 16. a5 {[%clk 0:01:01.6]} 16... Qc5 {[%clk 0:02:11.8]} 17.
Na4 {[%clk 0:00:53.4]} 17... Qxc4 {[%clk 0:02:00]} 18. Nb6 {[%clk 0:00:53]}
18... Qb5 {[%clk 0:01:58.5]} 19. Nxa8 {[%clk 0:00:42.6]} 19... dxe3 {[%clk
0:01:56.8]} 20. Nc7 {[%clk 0:00:41.6]} 20... exf2+ {[%clk 0:01:55.8]} 21. Qxf2
{[%clk 0:00:39.2]} 21... Qe5 {[%clk 0:01:55.6]} 22. Nxa6 {[%clk 0:00:25.4]}
22... bxa6 {[%clk 0:01:52]} 23. Kh1 {[%clk 0:00:24.8]} 23... Ne4 {[%clk
0:01:49.6]} 24. Qe1 {[%clk 0:00:15.7]} 24... Ng3+ {[%clk 0:01:36.1]} 25. Kh2
{[%clk 0:00:12.4]} 25... Nf1+ {[%clk 0:01:04.1]} 26. Kg1 {[%clk 0:00:11.9]}
26... Bc5+ {[%clk 0:01:03.5]} 27. Kxf1 {[%clk 0:00:10]} 27... Qf5+ {[%clk
0:00:58]} 28. Ke2 {[%clk 0:00:05.1]} 28... Re8+ {[%clk 0:00:57.3]} 29. Kd2
{[%clk 0:00:05.6]} 29... Bb4+ {[%clk 0:00:57.3]} 30. Kc1 {[%clk 0:00:02.9]}
30... Bxe1 {[%clk 0:00:55.9]} 0-1

[Event "*** SCC Grand Prix: Titled Tuesday Blitz"]
[Site "Chess.com"]
[Date "2020.08.11"]
[Round "2"]
[White "M1711"]
[Black "hongnhung1234"]
[Result "1-0"]
[WhiteElo "2449"]
[BlackElo "2235"]
[TimeControl "180+1"]
[EndTime "10:18:02 PDT"]
[Termination "M1711 won by checkmate"]

1. e4 {[%clk 0:03:00.9]} 1... c5 {[%clk 0:02:59.6]} 2. Nf3 {[%clk 0:03:01.4]}
2... e6 {[%clk 0:02:59.5]} 3. d4 {[%clk 0:03:01.6]} 3... cxd4 {[%clk 0:03:00.4]}
4. Bg5 {[%clk 0:03:01.6]} 4... f6 {[%clk 0:02:54.3]} 5. Bc1 {[%clk 0:03:01.6]}
5... e5 {[%clk 0:02:48.3]} 6. c3 {[%clk 0:03:01.6]} 6... d5 {[%clk 0:02:47.4]}
7. exd5 {[%clk 0:03:00.3]} 7... Qxd5 {[%clk 0:02:46.8]} 8. cxd4 {[%clk
0:03:00.9]} 8... Nc6 {[%clk 0:02:42.3]} 9. Nc3 {[%clk 0:02:58.2]} 9... Bb4
{[%clk 0:02:40.6]} 10. Bd2 {[%clk 0:02:57.6]} 10... Bxc3 {[%clk 0:02:37.3]} 11.
Bxc3 {[%clk 0:02:58.5]} 11... exd4 {[%clk 0:02:27.6]} 12. Nxd4 {[%clk
0:02:54.1]} 12... Nge7 {[%clk 0:02:21.5]} 13. Nxc6 {[%clk 0:02:46.7]} 13... Qxc6
{[%clk 0:02:11.7]} 14. Qh5+ {[%clk 0:02:40]} 14... g6 {[%clk 0:02:08.3]} 15. Qh4
{[%clk 0:02:16.7]} 15... O-O {[%clk 0:02:01.4]} 16. O-O-O {[%clk 0:02:12.8]}
16... Bf5 {[%clk 0:01:51.6]} 17. Bc4+ {[%clk 0:02:08.7]} 17... Kg7 {[%clk
0:01:50.3]} 18. Rhe1 {[%clk 0:02:06.9]} 18... Ng8 {[%clk 0:01:39.6]} 19. g4
{[%clk 0:01:58.5]} 19... Qxc4 {[%clk 0:01:36]} 20. Rd4 {[%clk 0:01:43.6]} 20...
Qxd4 {[%clk 0:00:49.8]} 21. Bxd4 {[%clk 0:01:42]} 21... Rac8+ {[%clk 0:00:50.4]}
22. Bc3 {[%clk 0:01:41.9]} 22... Bd3 {[%clk 0:00:47.3]} 23. g5 {[%clk
0:01:38.1]} 23... b5 {[%clk 0:00:42.6]} 24. gxf6+ {[%clk 0:01:32.9]} 24... Nxf6
{[%clk 0:00:32.2]} 25. Re7+ {[%clk 0:01:29.8]} 25... Kg8 {[%clk 0:00:30.3]} 26.
Kd2 {[%clk 0:01:19.9]} 26... Rcd8 {[%clk 0:00:20.1]} 27. Bxf6 {[%clk 0:01:15.6]}
27... g5 {[%clk 0:00:18.5]} 28. Rg7+ {[%clk 0:01:11]} 28... Kh8 {[%clk
0:00:18.8]} 29. Rf7+ {[%clk 0:01:08.7]} 29... Kg8 {[%clk 0:00:18.4]} 30. Rxf8+
{[%clk 0:01:09.3]} 30... Kxf8 {[%clk 0:00:17.9]} 31. Qh6+ {[%clk 0:01:08.9]}
31... Kf7 {[%clk 0:00:18.3]} 32. Qg7+ {[%clk 0:01:08.5]} 32... Ke6 {[%clk
0:00:18.7]} 33. Qe7+ {[%clk 0:01:08.8]} 33... Kf5 {[%clk 0:00:19.2]} 34. Qe5+
{[%clk 0:01:08.6]} 34... Kg6 {[%clk 0:00:19.1]} 35. Qxg5+ {[%clk 0:01:08.8]}
35... Kf7 {[%clk 0:00:19.7]} 36. Qg7+ {[%clk 0:01:09]} 36... Ke6 {[%clk
0:00:20.3]} 37. Qe7+ {[%clk 0:01:09.2]} 37... Kf5 {[%clk 0:00:20.8]} 38. Qxd8
{[%clk 0:01:08.9]} 38... Bc4 {[%clk 0:00:21.2]} 39. b3 {[%clk 0:01:08.8]} 39...
Be6 {[%clk 0:00:20.5]} 40. Qd4 {[%clk 0:01:08.9]} 40... Kg6 {[%clk 0:00:20]} 41.
f4 {[%clk 0:01:08.3]} 41... Bf5 {[%clk 0:00:20.3]} 42. Qe5 {[%clk 0:01:08.4]}
42... Bg4 {[%clk 0:00:18.6]} 43. Qg5+ {[%clk 0:01:08.6]} 43... Kf7 {[%clk
0:00:18.8]} 44. f5 {[%clk 0:01:09.5]} 44... h5 {[%clk 0:00:17.5]} 45. Qg7+
{[%clk 0:01:09.7]} 45... Ke8 {[%clk 0:00:17.2]} 46. Qe7# {[%clk 0:01:10.6]} 1-0

[Event "*** SCC Grand Prix: Titled Tuesday Blitz"]
[Site "Chess.com"]
[Date "2020.08.11"]
[Round "2"]
[White "QueenOfTactics90"]
[Black "korkmaz16"]
[Result "0-1"]
[WhiteElo "1942"]
[BlackElo "2350"]
[TimeControl "180+1"]
[EndTime "10:18:03 PDT"]
[Termination "korkmaz16 won on time"]

1. e4 {[%clk 0:03:00.9]} 1... e6 {[%clk 0:02:54.1]} 2. Qe2 {[%clk 0:03:00]} 2...
c5 {[%clk 0:02:53.3]} 3. Nf3 {[%clk 0:02:59.8]} 3... Nc6 {[%clk 0:02:52.9]} 4.
g3 {[%clk 0:02:59.4]} 4... Nf6 {[%clk 0:02:47.1]} 5. Bg2 {[%clk 0:02:56.9]} 5...
Be7 {[%clk 0:02:47]} 6. O-O {[%clk 0:02:56.3]} 6... d5 {[%clk 0:02:47.2]} 7. e5
{[%clk 0:02:55.4]} 7... Nd7 {[%clk 0:02:46.5]} 8. d3 {[%clk 0:02:54.6]} 8... O-O
{[%clk 0:02:43.9]} 9. h4 {[%clk 0:02:54]} 9... f6 {[%clk 0:02:07.5]} 10. exf6
{[%clk 0:02:35.4]} 10... Nxf6 {[%clk 0:02:06.8]} 11. Bh3 {[%clk 0:02:28.5]}
11... e5 {[%clk 0:01:59.5]} 12. Bxc8 {[%clk 0:02:23]} 12... Rxc8 {[%clk
0:01:56.6]} 13. Nxe5 {[%clk 0:02:22.7]} 13... Nd4 {[%clk 0:01:54.5]} 14. Qd1
{[%clk 0:02:14.2]} 14... Bd6 {[%clk 0:01:52.3]} 15. Bf4 {[%clk 0:01:58.2]} 15...
Qc7 {[%clk 0:01:41.8]} 16. c3 {[%clk 0:01:25.5]} 16... Bxe5 {[%clk 0:01:36.8]}
17. Bxe5 {[%clk 0:01:23.6]} 17... Qxe5 {[%clk 0:01:31.2]} 18. cxd4 {[%clk
0:01:17.3]} 18... Qxd4 {[%clk 0:01:26.1]} 19. Nc3 {[%clk 0:01:15.2]} 19... Ng4
{[%clk 0:01:13.2]} 20. Qd2 {[%clk 0:01:14.3]} 20... Rf3 {[%clk 0:01:01.1]} 21.
Kg2 {[%clk 0:00:32.2]} 21... Rxd3 {[%clk 0:00:55.9]} 22. Qg5 {[%clk 0:00:29.4]}
22... Rf8 {[%clk 0:00:38.9]} 0-1

[Event "*** SCC Grand Prix: Titled Tuesday Blitz"]
[Site "Chess.com"]
[Date "2020.08.11"]
[Round "2"]
[White "eljanov"]
[Black "szachuspl"]
[Result "1-0"]
[WhiteElo "2817"]
[BlackElo "2533"]
[TimeControl "180+1"]
[EndTime "10:18:04 PDT"]
[Termination "eljanov won by resignation"]

1. e4 {[%clk 0:03:00.9]} 1... c5 {[%clk 0:02:59.1]} 2. Nf3 {[%clk 0:03:00.9]}
2... e6 {[%clk 0:02:58.8]} 3. d4 {[%clk 0:03:00.5]} 3... cxd4 {[%clk 0:02:59.1]}
4. Nxd4 {[%clk 0:03:01.4]} 4... Nc6 {[%clk 0:02:59.7]} 5. Nc3 {[%clk 0:02:57.8]}
5... d6 {[%clk 0:02:59.6]} 6. Be3 {[%clk 0:02:56.4]} 6... Nf6 {[%clk 0:02:57.8]}
7. f4 {[%clk 0:02:53.1]} 7... Qc7 {[%clk 0:02:53.3]} 8. Ndb5 {[%clk 0:02:48]}
8... Qb8 {[%clk 0:02:51.3]} 9. Qf3 {[%clk 0:02:37.9]} 9... Be7 {[%clk
0:02:44.2]} 10. O-O-O {[%clk 0:02:03.6]} 10... O-O {[%clk 0:02:35]} 11. h3
{[%clk 0:01:42.3]} 11... a6 {[%clk 0:02:34.8]} 12. Nd4 {[%clk 0:01:42.4]} 12...
Qc7 {[%clk 0:02:34.3]} 13. g4 {[%clk 0:01:39.7]} 13... Nxd4 {[%clk 0:02:31.2]}
14. Bxd4 {[%clk 0:01:35.7]} 14... b5 {[%clk 0:02:27.3]} 15. g5 {[%clk
0:01:33.3]} 15... Nd7 {[%clk 0:02:19.9]} 16. h4 {[%clk 0:01:33.4]} 16... Bb7
{[%clk 0:02:19.1]} 17. a3 {[%clk 0:01:28.7]} 17... Rfe8 {[%clk 0:02:12.8]} 18.
h5 {[%clk 0:01:27.9]} 18... e5 {[%clk 0:02:04.9]} 19. Be3 {[%clk 0:01:25.3]}
19... exf4 {[%clk 0:02:01.4]} 20. Bxf4 {[%clk 0:01:25.6]} 20... Ne5 {[%clk
0:01:58.7]} 21. Qg3 {[%clk 0:01:22]} 21... Bf8 {[%clk 0:01:23.9]} 22. g6 {[%clk
0:01:10.4]} 22... fxg6 {[%clk 0:01:21.9]} 23. hxg6 {[%clk 0:01:10.7]} 23... h6
{[%clk 0:01:17.9]} 24. Bh3 {[%clk 0:01:02.4]} 24... Rad8 {[%clk 0:01:06]} 25.
Nd5 {[%clk 0:01:01.2]} 25... Bxd5 {[%clk 0:00:55]} 26. exd5 {[%clk 0:01:02.1]}
26... Qc4 {[%clk 0:00:39.2]} 27. Be6+ {[%clk 0:00:44.2]} 27... Kh8 {[%clk
0:00:39.2]} 28. Bxe5 {[%clk 0:00:40.7]} 28... dxe5 {[%clk 0:00:35.3]} 29. Qxe5
{[%clk 0:00:38.5]} 1-0

[Event "*** SCC Grand Prix: Titled Tuesday Blitz"]
[Site "Chess.com"]
[Date "2020.08.11"]
[Round "2"]
[White "Virgo15"]
[Black "mortngabriel"]
[Result "1-0"]
[WhiteElo "2681"]
[BlackElo "2454"]
[TimeControl "180+1"]
[EndTime "10:18:05 PDT"]
[Termination "Virgo15 won by resignation"]

1. d4 {[%clk 0:03:00]} 1... Nf6 {[%clk 0:02:59.9]} 2. c4 {[%clk 0:02:56.9]} 2...
e6 {[%clk 0:03:00.2]} 3. Nc3 {[%clk 0:02:56.6]} 3... Bb4 {[%clk 0:03:00.7]} 4.
Qc2 {[%clk 0:02:56.7]} 4... O-O {[%clk 0:03:01]} 5. e4 {[%clk 0:02:56.9]} 5...
d5 {[%clk 0:03:00.9]} 6. e5 {[%clk 0:02:57.4]} 6... Ne4 {[%clk 0:03:01.2]} 7. a3
{[%clk 0:02:57.8]} 7... Bxc3+ {[%clk 0:02:53.4]} 8. bxc3 {[%clk 0:02:57.7]} 8...
c5 {[%clk 0:02:53]} 9. Bb2 {[%clk 0:02:56.1]} 9... cxd4 {[%clk 0:02:48.5]} 10.
cxd4 {[%clk 0:02:57]} 10... Qa5+ {[%clk 0:02:48.1]} 11. Ke2 {[%clk 0:02:57.4]}
11... f6 {[%clk 0:02:04.2]} 12. f3 {[%clk 0:02:56.2]} 12... Ng5 {[%clk
0:02:03.7]} 13. h4 {[%clk 0:02:56.4]} 13... Nf7 {[%clk 0:02:03.5]} 14. exf6
{[%clk 0:02:56.6]} 14... gxf6 {[%clk 0:02:04.4]} 15. Kf2 {[%clk 0:02:56.4]}
15... Nc6 {[%clk 0:01:55.8]} 16. Bd3 {[%clk 0:02:52.8]} 16... Kg7 {[%clk
0:01:40.5]} 17. Ne2 {[%clk 0:02:47.6]} 17... dxc4 {[%clk 0:01:23.7]} 18. Bxc4
{[%clk 0:02:45.1]} 18... Nd6 {[%clk 0:01:22.9]} 19. Bd3 {[%clk 0:02:41.6]} 19...
Bd7 {[%clk 0:01:21.8]} 20. h5 {[%clk 0:02:34.7]} 20... Rac8 {[%clk 0:01:08]} 21.
h6+ {[%clk 0:02:33.5]} 21... Kh8 {[%clk 0:01:07.8]} 22. Qc5 {[%clk 0:02:15.5]}
22... Qd2 {[%clk 0:00:53.4]} 23. Qxd6 {[%clk 0:01:50.1]} 23... Rf7 {[%clk
0:00:43.4]} 24. d5 {[%clk 0:01:32.3]} 24... Qxd3 {[%clk 0:00:41.8]} 25. Rad1
{[%clk 0:01:30.3]} 25... Qf5 {[%clk 0:00:31.5]} 26. dxc6 {[%clk 0:01:24.8]}
26... Bxc6 {[%clk 0:00:28.3]} 27. Qf4 {[%clk 0:01:00.2]} 27... Qg6 {[%clk
0:00:25.3]} 28. Rh3 {[%clk 0:00:50]} 28... e5 {[%clk 0:00:22.3]} 29. Qg4 {[%clk
0:00:48.6]} 29... Qc2 {[%clk 0:00:18.8]} 30. Qxc8+ {[%clk 0:00:46.7]} 1-0

[Event "*** SCC Grand Prix: Titled Tuesday Blitz"]
[Site "Chess.com"]
[Date "2020.08.11"]
[Round "2"]
[White "YoreDea"]
[Black "Bastiandash"]
[Result "1-0"]
[WhiteElo "2627"]
[BlackElo "2300"]
[TimeControl "180+1"]
[EndTime "10:18:05 PDT"]
[Termination "YoreDea won on time"]

1. e4 {[%clk 0:02:54.7]} 1... c5 {[%clk 0:02:58.6]} 2. Be2 {[%clk 0:02:54.3]}
2... Nc6 {[%clk 0:02:51.4]} 3. f4 {[%clk 0:02:50.2]} 3... g6 {[%clk 0:02:49.6]}
4. Nf3 {[%clk 0:02:49.1]} 4... Bg7 {[%clk 0:02:50.1]} 5. d3 {[%clk 0:02:49.5]}
5... d6 {[%clk 0:02:49.6]} 6. c3 {[%clk 0:02:49.1]} 6... e6 {[%clk 0:02:50.2]}
7. Be3 {[%clk 0:02:48.5]} 7... Nge7 {[%clk 0:02:49.6]} 8. O-O {[%clk 0:02:48]}
8... O-O {[%clk 0:02:50]} 9. Nbd2 {[%clk 0:02:47.8]} 9... Rb8 {[%clk 0:02:47.7]}
10. Qe1 {[%clk 0:02:44.3]} 10... b5 {[%clk 0:02:46.6]} 11. d4 {[%clk 0:02:44.4]}
11... b4 {[%clk 0:02:32.7]} 12. Kh1 {[%clk 0:02:35.9]} 12... a5 {[%clk
0:02:14.3]} 13. dxc5 {[%clk 0:02:29.8]} 13... bxc3 {[%clk 0:02:13.3]} 14. bxc3
{[%clk 0:02:26.5]} 14... Bxc3 {[%clk 0:02:04.1]} 15. Rc1 {[%clk 0:02:24.5]}
15... Bb4 {[%clk 0:01:43.8]} 16. cxd6 {[%clk 0:02:21.1]} 16... Bxd6 {[%clk
0:01:38.9]} 17. e5 {[%clk 0:02:11.8]} 17... Bb4 {[%clk 0:01:30.8]} 18. Rd1
{[%clk 0:01:55]} 18... Nd5 {[%clk 0:01:20.7]} 19. Bg1 {[%clk 0:01:47.6]} 19...
Nxf4 {[%clk 0:01:06.2]} 20. Bc4 {[%clk 0:01:36.8]} 20... Nd5 {[%clk 0:00:30.1]}
21. Qg3 {[%clk 0:01:31.9]} 21... Qe7 {[%clk 0:00:19.4]} 22. Ne4 {[%clk
0:01:30.4]} 22... f5 {[%clk 0:00:07.6]} 23. exf6 {[%clk 0:01:10.9]} 23... Nxf6
{[%clk 0:00:06.6]} 24. Neg5 {[%clk 0:01:07.2]} 24... Bb7 {[%clk 0:00:02.1]} 25.
Nxe6 {[%clk 0:01:06]} 25... Rf7 {[%clk 0:00:02.3]} 26. Nfg5 {[%clk 0:01:03.2]}
26... Rbf8 {[%clk 0:00:02.4]} 27. Nxf7 {[%clk 0:00:58.9]} 27... Rxf7 {[%clk
0:00:03.3]} 28. Ng5 {[%clk 0:00:58.7]} 28... Ne5 {[%clk 0:00:03.6]} 29. Bxf7+
{[%clk 0:00:53.1]} 29... Nxf7 {[%clk 0:00:04.5]} 30. Nxf7 {[%clk 0:00:52.4]}
30... Qxf7 {[%clk 0:00:05.4]} 31. Rxf6 {[%clk 0:00:49.2]} 31... Qxf6 {[%clk
0:00:05.1]} 32. Qb8+ {[%clk 0:00:48.6]} 1-0

[Event "*** SCC Grand Prix: Titled Tuesday Blitz"]
[Site "Chess.com"]
[Date "2020.08.11"]
[Round "2"]
[White "WiktoriaPOL"]
[Black "DinaBelenkaya"]
[Result "0-1"]
[WhiteElo "1859"]
[BlackElo "2347"]
[TimeControl "180+1"]
[EndTime "10:18:07 PDT"]
[Termination "DinaBelenkaya won on time"]

1. c4 {[%clk 0:03:00.9]} 1... e5 {[%clk 0:02:58.3]} 2. Nc3 {[%clk 0:03:00.3]}
2... Bc5 {[%clk 0:02:56.8]} 3. Nf3 {[%clk 0:02:56.8]} 3... Nc6 {[%clk 0:02:51]}
4. e3 {[%clk 0:02:54.8]} 4... a6 {[%clk 0:02:50.1]} 5. d4 {[%clk 0:02:47.6]}
5... exd4 {[%clk 0:02:51]} 6. exd4 {[%clk 0:02:47.3]} 6... Ba7 {[%clk
0:02:51.6]} 7. Be3 {[%clk 0:02:45.9]} 7... Nf6 {[%clk 0:02:45.4]} 8. Bd3 {[%clk
0:02:44.1]} 8... d6 {[%clk 0:02:41.8]} 9. O-O {[%clk 0:02:41.2]} 9... O-O {[%clk
0:02:40.6]} 10. Qd2 {[%clk 0:02:37.4]} 10... Bg4 {[%clk 0:02:35.4]} 11. Be2
{[%clk 0:02:08]} 11... Re8 {[%clk 0:02:29.6]} 12. h3 {[%clk 0:02:01.7]} 12...
Bh5 {[%clk 0:02:28.9]} 13. Rad1 {[%clk 0:01:54.1]} 13... Qd7 {[%clk 0:02:20.4]}
14. Rfe1 {[%clk 0:01:27.3]} 14... Re7 {[%clk 0:01:48.5]} 15. Bg5 {[%clk
0:01:13.8]} 15... Bxf3 {[%clk 0:01:37.6]} 16. Bxf3 {[%clk 0:01:09.9]} 16...
Rxe1+ {[%clk 0:01:24.3]} 17. Rxe1 {[%clk 0:01:08.7]} 17... Nxd4 {[%clk 0:01:25]}
18. Bxb7 {[%clk 0:00:59.5]} 18... Rb8 {[%clk 0:01:12.5]} 19. Bxf6 {[%clk
0:00:47]} 19... gxf6 {[%clk 0:01:08]} 20. Be4 {[%clk 0:00:33.1]} 20... Kh8
{[%clk 0:01:00.6]} 21. Qh6 {[%clk 0:00:29.6]} 21... Nf5 {[%clk 0:00:37.1]} 22.
Qxf6+ {[%clk 0:00:26.3]} 22... Ng7 {[%clk 0:00:37.7]} 23. Qh6 {[%clk 0:00:21.8]}
23... f5 {[%clk 0:00:37.8]} 24. Bd3 {[%clk 0:00:08.5]} 24... Rxb2 {[%clk
0:00:37.5]} 25. Nd5 {[%clk 0:00:04.7]} 25... Bxf2+ {[%clk 0:00:36]} 0-1

[Event "*** SCC Grand Prix: Titled Tuesday Blitz"]
[Site "Chess.com"]
[Date "2020.08.11"]
[Round "2"]
[White "r31415"]
[Black "queen_iryna"]
[Result "1-0"]
[WhiteElo "2457"]
[BlackElo "2252"]
[TimeControl "180+1"]
[EndTime "10:18:10 PDT"]
[Termination "r31415 won by resignation"]

1. e4 {[%clk 0:03:00.9]} 1... d6 {[%clk 0:02:57.5]} 2. d4 {[%clk 0:03:00.3]}
2... Nf6 {[%clk 0:02:58]} 3. Nc3 {[%clk 0:03:00.4]} 3... e5 {[%clk 0:02:58.2]}
4. dxe5 {[%clk 0:02:54.9]} 4... dxe5 {[%clk 0:02:59.1]} 5. Qxd8+ {[%clk
0:02:54.8]} 5... Kxd8 {[%clk 0:03:00]} 6. f4 {[%clk 0:02:55.1]} 6... Bb4 {[%clk
0:02:47.5]} 7. Bd2 {[%clk 0:02:55.2]} 7... exf4 {[%clk 0:02:24.4]} 8. O-O-O
{[%clk 0:02:55.2]} 8... Nbd7 {[%clk 0:02:16.9]} 9. Nf3 {[%clk 0:02:33.9]} 9...
Re8 {[%clk 0:01:52.7]} 10. Bc4 {[%clk 0:01:44.7]} 10... Bxc3 {[%clk 0:01:34.4]}
11. Bxc3 {[%clk 0:01:44]} 11... Nxe4 {[%clk 0:01:35.3]} 12. Bxg7 {[%clk
0:01:38.4]} 12... Nf2 {[%clk 0:01:34.6]} 13. Bf6+ {[%clk 0:01:37.6]} 13... Re7
{[%clk 0:01:31.4]} 14. Rhe1 {[%clk 0:01:24.9]} 14... Nxd1 {[%clk 0:01:22.3]} 15.
Bxe7+ {[%clk 0:01:17.6]} 15... Ke8 {[%clk 0:01:22.3]} 16. Kxd1 {[%clk
0:01:12.6]} 16... Nb6 {[%clk 0:01:14.6]} 17. Bb3 {[%clk 0:01:04.5]} 17... Be6
{[%clk 0:01:08]} 18. Bxe6 {[%clk 0:00:56.1]} 18... fxe6 {[%clk 0:01:08.9]} 19.
Rxe6 {[%clk 0:00:51.3]} 19... Kf7 {[%clk 0:01:08.1]} 20. Ng5+ {[%clk 0:00:50.4]}
20... Kg7 {[%clk 0:01:06.2]} 21. Bc5 {[%clk 0:00:45.4]} 21... Rd8+ {[%clk
0:01:04.7]} 22. Ke2 {[%clk 0:00:43.6]} 22... Nd5 {[%clk 0:00:58.7]} 23. Re4
{[%clk 0:00:38.9]} 23... Kg6 {[%clk 0:00:51.7]} 24. Ne6 {[%clk 0:00:37.1]} 24...
Rg8 {[%clk 0:00:44.7]} 25. c4 {[%clk 0:00:35.6]} 25... Nf6 {[%clk 0:00:38.8]}
26. Re5 {[%clk 0:00:27.9]} 26... Kf7 {[%clk 0:00:31.5]} 27. Nxf4 {[%clk
0:00:25.7]} 27... Rg4 {[%clk 0:00:26]} 28. Re7+ {[%clk 0:00:23.8]} 28... Kg8
{[%clk 0:00:26]} 29. g3 {[%clk 0:00:23.6]} 29... b6 {[%clk 0:00:24.4]} 30. Bd4
{[%clk 0:00:22.5]} 1-0

[Event "*** SCC Grand Prix: Titled Tuesday Blitz"]
[Site "Chess.com"]
[Date "2020.08.11"]
[Round "2"]
[White "BulletMercenary"]
[Black "guillembaches"]
[Result "0-1"]
[WhiteElo "2149"]
[BlackElo "2404"]
[TimeControl "180+1"]
[EndTime "10:18:10 PDT"]
[Termination "guillembaches won on time"]

1. d4 {[%clk 0:02:56.8]} 1... Nf6 {[%clk 0:02:59.5]} 2. c4 {[%clk 0:02:39.2]}
2... e6 {[%clk 0:02:59.5]} 3. Nc3 {[%clk 0:02:30.9]} 3... Bb4 {[%clk 0:02:58.8]}
4. Qc2 {[%clk 0:02:18]} 4... O-O {[%clk 0:02:58.1]} 5. Nf3 {[%clk 0:00:30.2]}
5... b6 {[%clk 0:02:56.5]} 6. a3 {[%clk 0:00:30.2]} 6... Bxc3+ {[%clk
0:02:55.7]} 7. bxc3 {[%clk 0:00:31.1]} 7... Bb7 {[%clk 0:02:55.7]} 8. e3 {[%clk
0:00:30.2]} 8... d6 {[%clk 0:02:55.6]} 9. Bd3 {[%clk 0:00:27.1]} 9... Nbd7
{[%clk 0:02:55.1]} 10. O-O {[%clk 0:00:25.9]} 10... c5 {[%clk 0:02:54.2]} 11.
Nd2 {[%clk 0:00:25.8]} 11... Qe7 {[%clk 0:02:50.3]} 12. a4 {[%clk 0:00:24.9]}
12... a5 {[%clk 0:02:47.6]} 13. Ba3 {[%clk 0:00:23.2]} 13... e5 {[%clk
0:02:44.4]} 14. Rab1 {[%clk 0:00:21.5]} 14... e4 {[%clk 0:02:38.3]} 15. Be2
{[%clk 0:00:20]} 15... Rfe8 {[%clk 0:02:36.4]} 16. Rfe1 {[%clk 0:00:18.9]} 16...
h6 {[%clk 0:02:30.8]} 17. Nf1 {[%clk 0:00:15.8]} 17... Ba6 {[%clk 0:02:27.5]}
18. Rb3 {[%clk 0:00:13.2]} 18... Rac8 {[%clk 0:02:26.1]} 19. Reb1 {[%clk
0:00:11.4]} 19... Qd8 {[%clk 0:02:20]} 20. Ng3 {[%clk 0:00:09.9]} 20... Bb7
{[%clk 0:02:13.5]} 21. d5 {[%clk 0:00:09.1]} 21... g6 {[%clk 0:02:10.4]} 22. Qd2
{[%clk 0:00:05.6]} 22... h5 {[%clk 0:02:08.7]} 23. Bc1 {[%clk 0:00:03.9]} 23...
Ba6 {[%clk 0:02:08.2]} 24. Nf1 {[%clk 0:00:03.7]} 24... Rb8 {[%clk 0:02:05.4]}
25. f4 {[%clk 0:00:03.8]} 25... exf3 {[%clk 0:02:04.5]} 26. gxf3 {[%clk
0:00:04.7]} 26... Ne5 {[%clk 0:02:03.1]} 27. e4 {[%clk 0:00:04.1]} 27... Nxc4
{[%clk 0:02:02.7]} 28. Qh6 {[%clk 0:00:03.8]} 28... Nd7 {[%clk 0:01:55.9]} 29.
Nd2 {[%clk 0:00:03]} 29... Nxd2 {[%clk 0:01:50.2]} 30. Qxd2 {[%clk 0:00:03.9]}
30... Bxe2 {[%clk 0:01:46.6]} 31. Qxe2 {[%clk 0:00:04.8]} 31... Qh4 {[%clk
0:01:41.5]} 32. Be3 {[%clk 0:00:04]} 32... Qe7 {[%clk 0:01:36.6]} 33. c4 {[%clk
0:00:03.9]} 33... Qd8 {[%clk 0:01:28.3]} 34. Kh1 {[%clk 0:00:04.1]} 34... Qc7
{[%clk 0:01:28.1]} 35. Rg1 {[%clk 0:00:04.3]} 35... Ne5 {[%clk 0:01:27]} 36. f4
{[%clk 0:00:03.6]} 36... Ng4 {[%clk 0:01:27]} 37. Bc1 {[%clk 0:00:03.5]} 37...
Rxe4 {[%clk 0:01:24.7]} 0-1